Workbook

Sheet Normal oversigt
A6: År
A7: Elev type:
A8: Ferietillæg | B8: ='Detaljeret oversigt'!B8 -> 0.125
A9: Forsikring per elev | B9: 4600 | C9: kr/år
A10: Befordringsgodtgørelse | B10: 250 | C10: kr/uge* | E10: Antal uger praktik | G10: =Beregninger!C32 -> 16 | H10: Uger
A11: Udgifter Skolehjem | B11: 500 | C11: kr/uge | E11: Antal uger skole | G11: =Beregninger!C36 -> 20 | H11: Uger
A12: Refusion Skolehjem | B12: 500 | C12: kr/uge | E12: Pension | G12: =Beregninger!C34 -> 0
A13: Løntilskud (over 25 år) | B13: 0 | C13: kr/time** | E13: Refusion i skole per. | G13: =Beregninger!C37 -> 2560 | H13: kr/uge
E17: Refusion/tilskud | G17: Udgifter
A18: Lønudgift praktik og skole periode | G18: =(Beregninger!C32+Beregninger!C36)*Beregninger!C33 -> 91872
A19: Ferietillæg | G19: =G18*B8 -> 11484
A20: Pension | G20: =G18*Beregninger!C34 -> 0
A21: Refusion for skole periode | E21: =Beregninger!C36*Beregninger!C37 -> 51200
A22: Forsikring | G22: =B9 -> 4600
A23: Udgifter skolehjem | G23: =Beregninger!C36*B11 -> 10000
A24: Refusion skolehjem | E24: =Beregninger!C36*B12 -> 10000
A25: Løntilskud for vokse over 25 år EUV 2 og 3 elever | E25: =B13*Beregninger!C32*37 -> 0
A26: Befordringsgodtgørelse | G26: =B10*Beregninger!C36 -> 5000
A27: Bogpakke | G27: =VLOOKUP(Beregninger!B3,Beregninger!A5:L28,12, FALSE) -> 0
C28: I alt kr.: | E28: =SUM(E18:F27) -> 61200 | G28: =SUM(G18:H27) -> 122956
C29: Periodens udgift | G29: =G28-E28 -> 61756
A30: Gennemsnitlig udgift per måned fordelt på praktik perioden alt inkl. | F30: =IF(((G29/Beregninger!C32)*(52/12))>50000,0,((G29/Beregninger!C32)*(52/12))) -> 16725.58333
A31: Gennemsnitlig udgift per time fordelt på praktik perioden alt inkl. | F31: =F30/160.3333 -> 104.3175893
A32: Månedlige udgift skole | F32: =(F33/Beregninger!C36)*(52/12) -> 2431
A33: Total udgift i skoletid minus refusion | F33: =(((G18+G19+G20)/(Beregninger!C32+Beregninger!C36))*Beregninger!C36)-E21+G26+G27 -> 11220
A34: Timevis udgift skole | F34: =F32/160.3333 -> 15.16216531
A35: Månedlige udgifter praktik uden skoleomkostninger | F35: =IF(((F37/Beregninger!C32)*(52/12))>50000,0,((F37/Beregninger!C32)*(52/12))) -> 13686.83333
A36: Timevis udgift praktik uden skoleomkostninger | F36: =F35/160.3333 -> 85.36488261
A37: Total udgift praktiktid minus løntilskud | F37: =(((G18+G19+G20)/(Beregninger!C32+Beregninger!C36))*Beregninger!C32)-E25+G22 -> 50536
A40: Forudsætninger:
A41: *Befordringsgodtgørelse 80% af billigste offentlig transport refunderet estimat
A42: AUB refusion er beregnet med 2018 tal for alle år.
A43: Ugeløn og pension under skole og praktik ophold er beregnet for hele året selvom dette reguleres pr. 1. marts
A44: Krav til forsikring iht overenskomst
A45: EUV - ErhvervsUddannelse for Voksne.
A46: **Voksne der er fyldt 25 år, og indgår under reglerne for voksne, der tager en erhvervsuddannelse
A47: løntilskud forklaring | B47: 40 kr med anden baggrund i hele praktik perioden
B48: 30 kr i op til de første 2 år af praktik perioden
A49: Ny mesterlære eleven er det første uddannelsesår i praktik
A50: Skurpenge:
A51: Hvis forsvarligt skur- eller opholdsrum ikke anvises, ydes et dagligt beløb på 50,55 kr.
A52: regnet fra den lønningsuge hvor kravet stilles.
A53: Pr. 1. marts 2018 udgør satsen 53,02 kr. og pr. 1. marts 2019 er satsen 53,02 kr.

Sheet Detaljeret oversigt
A6: År
A7: Elev type:
A8: Ferietillæg | B8: 0.125
A9: Forsikring per elev | B9: 4600 | C9: kr/år
A10: Befordringsgodtgørelse | B10: 250 | C10: kr/uge* | E10: Antal uger praktik | G10: =Beregninger!C32 -> 16 | H10: Uger
A11: Udgifter Skolehjem | B11: 500 | C11: kr/uge | E11: Antal uger skole | G11: =Beregninger!C36 -> 20 | H11: Uger
A12: Refusion Skolehjem | B12: 500 | C12: kr/uge | E12: Pension | G12: =Beregninger!C34 -> 0
A13: Løntilskud (over 25 år) | B13: 0 | C13: kr/time** | E13: Refusion i skole per. | G13: =Beregninger!C37 -> 2560 | H13: kr/uge
E17: Refusion/tilskud | G17: Udgifter
A18: Lønudgift praktik og skole periode | G18: =(Beregninger!C32+Beregninger!C36)*Beregninger!C33 -> 91872
A19: Ferietillæg | G19: =G18*B8 -> 11484
A20: Pension | G20: =G18*Beregninger!C34 -> 0
A21: Refusion for skole periode | E21: =Beregninger!C36*Beregninger!C37 -> 51200
A22: Forsikring | G22: =B9 -> 4600
A23: Udgifter skolehjem | G23: =Beregninger!C36*'Detaljeret oversigt'!B11 -> 10000
A24: Refusion skolehjem | E24: =Beregninger!C36*'Detaljeret oversigt'!B12 -> 10000
A25: Løntilskud for vokse over 25 år EUV 2 og 3 elever | E25: ='Detaljeret oversigt'!B13*Beregninger!C32*37 -> 0
A26: Befordringsgodtgørelse | G26: =B10*Beregninger!C36 -> 5000
A27: Bogpakke | G27: =VLOOKUP(Beregninger!B3,Beregninger!A5:L28,12, FALSE) -> 0
C28: I alt kr.: | E28: =SUM(E18:F27) -> 61200 | G28: =SUM(G18:H27) -> 122956
C29: Periodens udgift | G29: =G28-E28 -> 61756
C30: Gennemsnitlig udgift per mnd. Praktik | G30: =IF(((G29/Beregninger!C32)*(52/12))>50000,0,((G29/Beregninger!C32)*(52/12))) -> 16725.58333
C31: Mnd. udgift skole | G31: =(G32/Beregninger!C36)*(52/12) -> 2431
C32: Total udgift i skoletid minus refusion | G32: =(((G18+G19+G20)/(Beregninger!C32+Beregninger!C36))*Beregninger!C36)-E21+G26+G27 -> 11220
C33: Mnd. udgift praktik | G33: =IF(((G34/Beregninger!C32)*(52/12))>50000,0,((G34/Beregninger!C32)*(52/12))) -> 13686.83333
C34: Total udgift praktiktid minus løntilskud | G34: =(((G18+G19+G20)/(Beregninger!C32+Beregninger!C36))*Beregninger!C32)-E25+G22 -> 50536
A37: Forudsætninger:
A38: *Befordringsgodtgørelse 80% af billigste offentlig transport refunderet estimat
A39: AUB refusion er beregnet med 2018 tal for alle år.
A40: Ugeløn og pension under skole og praktik ophold er beregnet for hele året selvom dette regulere pr 1. marts
A41: krav til forsikring iht overenskomst
A42: EUV - ErhvervsUddannelse for Voksne.
A43: **Voksne der er fyldt 25 år, og indgår under reglerne for voksne, der tager en erhvervsuddannelse
A44: løntilskud forklaring | B44: 40 kr med anden baggrund i hele praktik perioden
B45: 30 kr i op til de første 2 år af praktik perioden
A46: Ny mesterlære eleven er det første uddannelsesår i praktik

Sheet Beregninger
B3: 1
B4: Elev type | C4: Varighed praktik (uger) | D4: varighed skole (uger) | E4: AUB refusion skoletid (kr/uge) | F4: Pension 2017 | G4: Pension 2018 | H4: Pension 2019 | I4: Løn 2017 (uge) | J4: Løn 2018 (uge) | K4: Løn 2019 (uge) | L4: Bogpakke (kr/elev/uddannelse)
A5: 1 | B5: Under 20 år, 1. uddannelsesår med uddannelsesaftale | C5: 16 | D5: 20 | E5: 2560 | F5: 0 | G5: 0 | H5: 0 | I5: 2552 | J5: 2552 | K5: 2552 | L5: 0
A6: 2 | B6: Under 20 år, 2. uddannelsesår | C6: 45 | D6: 7 | E6: 2840 | F6: 0 | G6: 0 | H6: 0 | I6: 2950 | J6: 2950 | K6: 2950 | L6: 998
A7: 3 | B7: Under 20 år, 3. år uddannelsesår | C7: 44 | D7: 8 | E7: 3200 | F7: 0 | G7: 0 | H7: 0 | I7: 3523 | J7: 3523 | K7: 3523 | L7: 0
A8: 4 | B8: Under 20 år, 4. år uddannelsesår | C8: 31 | D8: 21 | E8: 3760 | F8: 0 | G8: 0 | H8: 0 | I8: 4237 | J8: 4237 | K8: 4237 | L8: 0
A9: 5 | B9: Mellem 20 og 25 år, 1. uddannelsesår med uddannelsesaftale | C9: 16 | D9: 20 | E9: 2560 | F9: 0.017 | G9: 0.034 | H9: 0.051 | I9: 2552 | J9: 2552 | K9: 2552 | L9: 0
A10: 6 | B10: Mellem 20 og 25 år, 2. uddannelsesår | C10: 45 | D10: 7 | E10: 2840 | F10: 0.017 | G10: 0.034 | H10: 0.051 | I10: 2950 | J10: 2950 | K10: 2950 | L10: 998
A11: 7 | B11: Mellem 20 og 25 år, 3. uddannelsesår | C11: 44 | D11: 8 | E11: 3200 | F11: 0.017 | G11: 0.034 | H11: 0.051 | I11: 3523 | J11: 3523 | K11: 3523 | L11: 0
A12: 8 | B12: Mellem 20 og 25 år, 4. uddannelsesår | C12: 31 | D12: 21 | E12: 3760 | F12: 0.017 | G12: 0.034 | H12: 0.051 | I12: 4237 | J12: 4237 | K12: 4237 | L12: 0
A13: 9 | B13: Over 25 år EUV 1 (>24 mrd. erhvervserfaring) kun hovedforløb | C13: 0.01 | D13: 32 | E13: 5100 | F13: 0.017 | G13: 0.034 | H13: 0.051 | I13: 5114 | J13: 5206 | K13: 5299 | L13: 998
A14: 10 | B14: Over 25 år EUV 2 (<24 mrd. erhvervserfaring) uden grundforløb | C14: 36 | D14: 16 | E14: 5100 | F14: 0.017 | G14: 0.034 | H14: 0.051 | I14: 5114 | J14: 5206 | K14: 5299 | L14: 998
A15: 11 | B15: Over 25 år EUV 2 (<24 mrd. erhvervserfaring) med grundforløb | C15: 35 | D15: 17 | E15: 5100 | F15: 0.017 | G15: 0.034 | H15: 0.051 | I15: 5114 | J15: 5206 | K15: 5299 | L15: 998
A16: 12 | B16: Over 25 år EUV 3 (0 mrd. erhvervserfaring) uden grundforløb 3,5 år | C16: 41 | D16: 11 | E16: 5100 | F16: 0.017 | G16: 0.034 | H16: 0.051 | I16: 5114 | J16: 5206 | K16: 5299 | L16: 998
A17: 13 | B17: Over 25 år EUV 3 (0 mrd. erhvervserfaring) med grundforløb 3,5 år | C17: 35 | D17: 17 | E17: 5100 | F17: 0.017 | G17: 0.034 | H17: 0.051 | I17: 5114 | J17: 5206 | K17: 5299 | L17: 998
A18: 14 | B18: Ny mesterlære. Under 20 år 3,5 år, 1 og 2. uddannelsesår | C18: 50 | D18: 2 | E18: 2700 | F18: 0 | G18: 0 | H18: 0 | I18: 2751 | J18: 2751 | K18: 2751 | L18: 998
A19: 15 | B19: Ny mesterlære. Under 20 år 3,5 år, 2. og 3. uddannelsesår | C19: 45 | D19: 7 | E19: 3020 | F19: 0 | G19: 0 | H19: 0 | I19: 3237 | J19: 3237 | K19: 3237 | L19: 0
A20: 16 | B20: Ny mesterlære. Under 20 år 3,5 år, 3. og 4. uddannelsesår | C20: 44 | D20: 8 | E20: 3480 | F20: 0 | G20: 0 | H20: 0 | I20: 3880 | J20: 3880 | K20: 3880 | L20: 0
A21: 17 | B21: Ny mesterlære. Under 20 år 3,5 år, 4. uddannelsesår | C21: 31 | D21: 21 | E21: 3760 | F21: 0 | G21: 0 | H21: 0 | I21: 4237 | J21: 4237 | K21: 4237 | L21: 0
A22: 18 | B22: Ny mesterlære. Mellem 20 og 25 år 3,5 år, 1 og 2. uddannelsesår | C22: 50 | D22: 2 | E22: 2700 | F22: 0.017 | G22: 0.034 | H22: 0.051 | I22: 2751 | J22: 2751 | K22: 2751 | L22: 998
A23: 19 | B23: Ny mesterlære. Mellem 20 og 25 år 3,5 år, 2 og 3. uddannelsesår | C23: 45 | D23: 7 | E23: 3020 | F23: 0.017 | G23: 0.034 | H23: 0.051 | I23: 3237 | J23: 3237 | K23: 3237 | L23: 0
A24: 20 | B24: Ny mesterlære. Mellem 20 og 25 år 3,5 år, 3. og 4. uddannelsesår | C24: 44 | D24: 8 | E24: 3480 | F24: 0.017 | G24: 0.034 | H24: 0.051 | I24: 3880 | J24: 3880 | K24: 3880 | L24: 0
A25: 21 | B25: Ny mesterlære. Mellem 20 og 25 år 3,5 år, 4. uddannelsesår | C25: 31 | D25: 21 | E25: 3760 | F25: 0.017 | G25: 0.034 | H25: 0.051 | I25: 4237 | J25: 4237 | K25: 4237 | L25: 0
A26: 22 | B26: Ny mesterlære. Over 25 år EUV 2 (<24 mrd. erhvervserfaring) | C26: 36 | D26: 16 | E26: 5100 | F26: 0.017 | G26: 0.034 | H26: 0.051 | I26: 5114 | J26: 5206 | K26: 5299 | L26: 998
A27: 23 | B27: Ny mesterlære. Over 25 år EUV 3 (0 mrd. erhvervserfaring) 3,5 år | C27: 41 | D27: 11 | E27: 5100 | F27: 0.017 | G27: 0.034 | H27: 0.051 | I27: 5114 | J27: 5206 | K27: 5299 | L27: 998
A28: 24
A29: 25
B32: Valgt varighed praktik | C32: =VLOOKUP(Beregninger!B3,Beregninger!A5:L29,3, FALSE) -> 16 | F32: 2
B33: valgt løn | C33: =VLOOKUP(Beregninger!B3,Beregninger!A5:L29,(8+F32), FALSE) -> 2552 | F33: År
B34: valgt pension | C34: =VLOOKUP(Beregninger!B3,Beregninger!A5:L29,(5+F32), FALSE) -> 0 | E34: 1 | F34: 2017
B35: Ferietillæg | C35: ='Detaljeret oversigt'!B8 -> 0.125 | E35: 2 | F35: 2018
B36: Valgt varighed skole | C36: =VLOOKUP(Beregninger!B3,Beregninger!A5:L29,4, FALSE) -> 20 | E36: 3 | F36: 2019
B37: Valgt varighed AUB refusion skoletid | C37: =VLOOKUP(Beregninger!B3,Beregninger!A5:L29,5, FALSE) -> 2560
